[Event "Chinese Team-ch Men 2025"]
[Site "Zhang Jiakou Hebei"]
[Date "2025.04.28"]
[Round "4.17"]
[White "Cao, Qingfeng"]
[Black "Xu, Xiangyu"]
[Result "1/2-1/2"]
[Annotator "TA"]
[ECO "D30"]
[WhiteElo "2443"]
[BlackElo "2623"]
[PlyCount "120"]
[EventDate "2025.04.26"]
[EventType "team-tourn"]
[EventCountry "CHN"]
[SourceTitle "playchess.com"]
[Source "ChessBase"]
[SourceQuality "1"]
[TimeControl "5400+30"]

{[%evp 9,120,2,17,14,37,37,35,20,37,30,27,25,24,27,30,29,22,11,25,9,24,12,33,0,0,-25,-30,-31,-27,-33,-21,-39,-36,-36,-16,-31,-31,-16,-25,-28,-18,-18,-19,-26,0,0,0,-30,-5,-17,-13,-14,-16,-13,-15,-8,-8,-8,-8,-8,-8,-8,-8,-8,-8,-8,-8,-8,-8,-15,-8,-8,-8,-8,0,-8,-8,-121,-121,-121,-8,-8,-8,-8,-8,-8,-8,-8,0,0,0,0,0,0,0,0,0,0,0,0,0,0,0,0,0,0,0,0,0,0,0,0,0]} 1. d4 {[%emt 0:00:06]} d5 {[%emt 0:00:18]} 2. c4 {[%emt 0:00:22]} e6 {[%emt 0:00:06]} 3. Nf3 {[%emt 0:01:04]} Nd7 {[%emt 0:00:08]} 4. g3 {[%emt 0:01:24]} dxc4 {[%emt 0:00:11]} 5. Bg2 {[%emt 0:00:13]} Rb8 {[%emt 0:00:06]} 6. a4 {[%emt 0:00:42] D30: Queen's Gambit Declined: Systems without Nc3.} a6 {[%emt 0:00:04]} 7. a5 {[%emt 0:00:28]} Bd6 {[%emt 0:00:06]} 8. Nbd2 {[%emt 0:03:17] White is slightly better.} b5 {[%emt 0:00:23]} 9. axb6 {[%emt 0:00:11]} Nxb6 {[%emt 0:00:05] [#]} 10. Nxc4 $1 {[%emt 0:05:28]} Nxc4 {[%emt 0:00:05]} 11. Qa4+ {[%emt 0:00:07]} Rb5 {[%emt 0:00:04]} 12. Qxc4 {[%emt 0:00:07][%cal Of3e5]} Ne7 {[%emt 0:00:05]} 13. O-O {[%emt 0:01:25][%cal Of3e5]} O-O {[%emt 0:00:05]} 14. Rd1 $146 {[%emt 0:04:02]} (14. Qc2 h6 15. Nd2 c5 16. dxc5 Bxc5 17. Ne4 Bd4 18. Nc3 Ra5 19. Bd2 Rxa1 20. Rxa1 Qb6 21. e3 Bxc3 22. Bxc3 Bb7 23. Bd4 Qb5 24. Bc3 {½-½ Peyrer,K (2431)-Romanov,E (2559) Vienna Ottakring 100 Years 2023 (9)}) 14... Bb7 {[%emt 0:04:56] Prevents e4.} 15. Ne1 {[%emt 0:02:30]} Bxg2 {[%emt 0:10:26]} 16. Nxg2 {[%emt 0:07:34]} Qa8 {[%emt 0:00:08]} 17. Qxb5 {[%emt 0:22:02]} axb5 {[%emt 0:00:05]} 18. Rxa8 {[%emt 0:00:05]} Rxa8 {[%emt 0:00:08]} 19. Ne1 {[%emt 0:00:23]} Ra1 {[%emt 0:10:55]} 20. Nd3 {[%emt 0:00:49]} Nc6 {[%emt 0:00:29]} 21. e3 {[%emt 0:00:13]} Na5 {[%emt 0:00:29]} 22. Re1 {[%emt 0:05:15]} Nb3 {[%emt 0:20:22]} 23. Bd2 {[%emt 0:04:03]} Ra4 {[%emt 0:00:09]} 24. Rd1 {[%emt 0:00:42]} Kf8 {[%emt 0:01:19]} 25. Kf1 {[%emt 0:00:47]} Ke7 {[%emt 0:05:57]} 26. Ke2 {[%emt 0:01:03]} g5 {[%emt 0:07:09]} 27. h3 {[%emt 0:03:42]} h5 {[%emt 0:02:18]} 28. Nc1 {[%emt 0:01:39]} Nxd2 {[%emt 0:01:03]} 29. Rxd2 $11 {[%emt 0:06:08][%mdl 4096] Endgame KRB-KRN} Ra1 {[%emt 0:03:24]} 30. Rd1 {[%emt 0:01:19]} e5 {[%emt 0:08:59]} 31. dxe5 {[%emt 0:01:57]} Bxe5 {[%emt 0:00:03]} 32. Nd3 {[%emt 0:01:52]} Rxd1 {[%emt 0:00:04]} 33. Kxd1 {[%emt 0:00:04] KB-KN} Kd6 {[%emt 0:00:05]} 34. f4 {[%emt 0:05:47]} gxf4 {[%emt 0:00:20]} 35. gxf4 {[%emt 0:00:18]} Bg7 {[%emt 0:00:06]} 36. e4 $1 {[%emt 0:00:50]} c5 {[%emt 0:13:47]} 37. b3 {[%emt 0:00:10] [#]} f5 $1 {[%emt 0:01:05]} 38. exf5 {[%emt 0:01:36]} Kd5 {[%emt 0:00:07]} 39. Kd2 {[%emt 0:04:06]} Kd4 {[%emt 0:04:16][%mdl 1024] Black has compensation.} 40. Kc2 {[%emt 0:01:55]} Bf6 {[%emt 0:03:13]} 41. Kd2 {[%emt 0:00:21]} Be7 {[%emt 0:03:26]} 42. Ne5 {[%emt 0:04:11] Nc6+ would now be deadly.} Ke4 $1 {[%emt 0:00:07][%csl LRf4,LRf5]} 43. Ke2 {[%emt 0:00:21]} (43. Nd3 $11) 43... Kxf5 $17 {[%emt 0:00:35][%cal Of5e4] Hoping for ...Ke4!.} 44. Kf3 {[%emt 0:00:34] [#]} Bd6 {[%emt 0:00:15]} (44... Bf8 $1 $17) 45. Nd3 $11 {[%emt 0:01:02] The position is equal.} h4 {[%emt 0:04:52]} 46. Ke3 {[%emt 0:02:31]} c4 {[%emt 0:00:02]} 47. bxc4 {[%emt 0:00:04]} bxc4 {[%emt 0:00:02]} 48. Ne1 {[%emt 0:00:48]} Bc5+ {[%emt 0:00:05]} 49. Kf3 {[%emt 0:00:33]} c3 {[%emt 0:00:03]} 50. Nc2 {[%emt 0:00:37]} Bb6 {[%emt 0:00:17]} 51. Na3 {[%emt 0:02:18]} Ba7 {[%emt 0:01:56]} (51... Bc5 $5 52. Nc2 $8 Bb6 $11) 52. Nc2 {[%emt 0:00:04]} Bg1 {[%emt 0:00:11]} 53. Kg2 {[%emt 0:00:28]} Bb6 {[%emt 0:00:43]} (53... Bc5 $5 54. Kf3 $8 Bg1 $11) 54. Kf3 {[%emt 0:00:03]} Bc5 {[%emt 0:00:17]} 55. Ne1 {[%emt 0:00:19]} Ba7 {[%emt 0:01:14]} 56. Nc2 {[%emt 0:00:08]} Bb6 {[%emt 0:00:11]} 57. Na3 {[%emt 0:00:37]} Bg1 {[%emt 0:00:28]} 58. Nc2 {[%emt 0:00:26]} Bc5 {[%emt 0:00:50]} 59. Ne1 {[%emt 0:00:05]} Ba3 {[%emt 0:00:32]} 60. Nc2 {[%emt 0:00:19]} Bc5 {[%emt 0:00:07] Weighted Error Value: White=0.09 (flawless) /Black=0.07 (flawless)   Mistake:       	White=1     	Black=1      Inaccurate:     	White=2     	Black=1      OK:         	White=25    	Black=23     Best:        	White=10    	Black=1      Strong:       	White=1     	---} 1/2-1/2

[Event "Chinese Team-ch Men 2025"]
[Site "Zhang Jiakou Hebei"]
[Date "2025.04.28"]
[Round "4.18"]
[White "Zhao, Yuanhe"]
[Black "Dong, Hongfu"]
[Result "1-0"]
[Annotator "RC"]
[ECO "A34"]
[WhiteElo "2482"]
[BlackElo "2238"]
[PlyCount "111"]
[EventDate "2025.04.26"]
[EventType "team-tourn"]
[EventCountry "CHN"]
[SourceTitle "playchess.com"]
[Source "ChessBase"]
[SourceQuality "1"]
[TimeControl "5400+30"]

1. Nf3 {[%emt 0:00:16]} Nf6 {[%emt 0:00:06]} 2. c4 {[%emt 0:00:15]} c5 {[%emt 0:00:06]} 3. Nc3 {[%emt 0:00:19]} Nc6 {[%emt 0:00:07]} 4. g3 {[%emt 0:00:43]} d5 {[%emt 0:00:16]} 5. cxd5 {[%emt 0:00:19]} Nxd5 {[%emt 0:00:07]} 6. Bg2 {[%emt 0:00:07]} Nc7 {[%emt 0:00:07]} 7. O-O {[%emt 0:01:07]} e5 {[%emt 0:00:10]} 8. a3 {[%emt 0:01:18]} Rb8 {[%emt 0:00:14]} 9. Rb1 {[%emt 0:03:48]} f6 {[%emt 0:07:54]} 10. d3 {[%emt 0:06:20]} Bd7 {[%emt 0:06:47]} 11. Be3 {[%emt 0:01:05]} Be7 {[%emt 0:01:36]} 12. Nd2 {[%emt 0:00:20]} O-O {[%emt 0:13:22]} 13. b4 {[%emt 0:04:27]} Ne6 {[%emt 0:02:05]} 14. Nd5 {[%emt 0:04:16]} cxb4 {[%emt 0:00:31]} 15. axb4 {[%emt 0:00:42]} Ncd4 {[%emt 0:00:19]} 16. Nc4 {[%emt 0:04:24]} Bc6 {[%emt 0:03:35]} 17. Bxd4 {[%emt 0:17:36]} Nxd4 {[%emt 0:03:37]} 18. Nxe7+ {[%emt 0:03:02]} Qxe7 {[%emt 0:00:07]} 19. Bxc6 {[%emt 0:04:30]} bxc6 {[%emt 0:02:39]} 20. e3 {[%emt 0:01:50]} Ne6 {[%emt 0:08:33]} 21. Na5 {[%emt 0:03:37]} Qd7 {[%emt 0:02:09]} 22. Qg4 {[%emt 0:04:19]} Kh8 {[%emt 0:05:08]} 23. h4 {[%emt 0:02:00]} Rbc8 {[%emt 0:04:08]} 24. Qc4 {[%emt 0:01:51]} f5 {[%emt 0:18:39]} 25. Kh2 {[%emt 0:00:09]} g5 {[%emt 0:00:37]} 26. Qc3 {[%emt 0:02:48]} Qg7 {[%emt 0:00:16]} 27. Nc4 {[%emt 0:00:07]} gxh4 {[%emt 0:02:56]} 28. Qxe5 {[%emt 0:00:11]} hxg3+ {[%emt 0:01:41]} 29. fxg3 {[%emt 0:00:08]} Qxe5 {[%emt 0:01:38]} 30. Nxe5 {[%emt 0:00:07]} c5 {[%emt 0:01:45]} 31. b5 {[%emt 0:00:35]} Rcd8 {[%emt 0:00:10]} 32. Rb3 {[%emt 0:02:30]} Rd5 {[%emt 0:03:32]} 33. Nc4 {[%emt 0:00:07]} Rb8 {[%emt 0:07:36]} 34. Kg2 {[%emt 0:02:55]} Nc7 {[%emt 0:01:41]} 35. Rfb1 {[%emt 0:00:43]} Rd7 {[%emt 0:00:28]} 36. Ne5 {[%emt 0:01:45]} Rg7 {[%emt 0:00:05]} 37. Kf2 {[%emt 0:01:26]} Nd5 {[%emt 0:01:18]} 38. Rc1 {[%emt 0:01:49]} Re8 {[%emt 0:00:19]} 39. Rxc5 {[%emt 0:09:15]} Rxe5 {[%emt 0:00:06]} 40. d4 {[%emt 0:00:04]} Rxe3 {[%emt 0:00:09]} 41. Rxe3 {[%emt 0:00:05]} Nxe3 {[%emt 0:00:05]} 42. Kxe3 {[%emt 0:00:03]} Rxg3+ {[%emt 0:00:08]} 43. Kf4 {[%emt 0:00:03]} Rg4+ {[%emt 0:00:27]} 44. Ke5 {[%emt 0:00:52]} f4 {[%emt 0:03:35]} 45. Rc1 {[%emt 0:04:59]} Kg7 {[%emt 0:01:16]} 46. d5 {[%emt 0:01:08]} Kf8 {[%emt 0:00:43]} 47. Rc8+ {[%emt 0:00:19]} Ke7 {[%emt 0:00:01]} 48. Rc7+ {[%emt 0:00:06]} Kd8 {[%emt 0:00:13]} 49. Rxa7 {[%emt 0:00:37]} f3 {[%emt 0:01:21]} 50. Rf7 {[%emt 0:00:40]} Rb4 {[%emt 0:00:20]} 51. Ke6 {[%emt 0:00:34]} Ke8 {[%emt 0:00:07]} 52. Rxf3 {[%emt 0:00:07]} Rxb5 {[%emt 0:00:03]} 53. d6 {[%emt 0:00:03]} Rb7 {[%emt 0:00:09]} 54. Ra3 {[%emt 0:00:17]} Kf8 {[%emt 0:00:26]} 55. Ra8+ {[%emt 0:00:13]} Kg7 {[%emt 0:00:03]} 56. d7 {[%emt 0:00:03]} 1-0

[Event "Chinese Team-ch Men 2025"]
[Site "Zhang Jiakou Hebei"]
[Date "2025.04.28"]
[Round "4.19"]
[White "Xia, Jinnan"]
[Black "Jiang, Qinyu"]
[Result "0-1"]
[Annotator "RC"]
[ECO "D39"]
[WhiteElo "1959"]
[BlackElo "2280"]
[PlyCount "106"]
[EventDate "2025.04.26"]
[EventType "team-tourn"]
[EventCountry "CHN"]
[SourceTitle "playchess.com"]
[Source "ChessBase"]
[SourceQuality "1"]
[TimeControl "5400+30"]

1. d4 {[%emt 0:00:01]} Nf6 {[%emt 0:00:01]} 2. c4 {[%emt 0:00:04]} e6 {[%emt 0:00:01]} 3. Nf3 {[%emt 0:00:02]} d5 {[%emt 0:00:04]} 4. Nc3 {[%emt 0:00:02]} dxc4 {[%emt 0:00:02]} 5. e4 {[%emt 0:00:24]} Bb4 {[%emt 0:00:02]} 6. Bg5 {[%emt 0:00:07]} c5 {[%emt 0:00:01]} 7. Bxc4 {[%emt 0:00:08]} cxd4 {[%emt 0:00:02]} 8. Nxd4 {[%emt 0:00:05]} Bxc3+ {[%emt 0:00:02]} 9. bxc3 {[%emt 0:00:03]} Qa5 {[%emt 0:00:02]} 10. Bxf6 {[%emt 0:00:13]} Qxc3+ {[%emt 0:00:08]} 11. Kf1 {[%emt 0:00:03]} gxf6 {[%emt 0:00:06]} 12. Bb5+ {[%emt 0:00:25]} Ke7 {[%emt 0:01:11]} 13. Rc1 {[%emt 0:08:29]} Qa5 {[%emt 0:00:03]} 14. Qb3 {[%emt 0:38:42]} Rd8 {[%emt 0:03:54]} 15. Be2 {[%emt 0:03:04]} Nc6 {[%emt 0:12:45]} 16. Nxc6+ {[%emt 0:06:02]} bxc6 {[%emt 0:00:02]} 17. Qc4 {[%emt 0:00:45]} Rb8 {[%emt 0:00:35]} 18. h4 {[%emt 0:02:41]} Rb2 {[%emt 0:02:47]} 19. Qxc6 {[%emt 0:02:22]} Bb7 {[%emt 0:03:46]} 20. Qc7+ {[%emt 0:01:24]} Qxc7 {[%emt 0:00:06]} 21. Rxc7+ {[%emt 0:00:03]} Kf8 {[%emt 0:00:33]} 22. Rc1 {[%emt 0:02:06]} Bxe4 {[%emt 0:04:18]} 23. Rh3 {[%emt 0:00:32]} Rdd2 {[%emt 0:00:01]} 24. Re1 {[%emt 0:02:04]} Bd5 {[%emt 0:01:49]} 25. Rc3 {[%emt 0:00:23]} Rxa2 {[%emt 0:00:03]} 26. h5 {[%emt 0:00:57]} Kg7 {[%emt 0:01:02]} 27. g4 {[%emt 0:00:40]} e5 {[%emt 0:00:47]} 28. f3 {[%emt 0:00:21]} Bb7 {[%emt 0:01:30]} 29. Rb1 {[%emt 0:01:45]} Bd5 {[%emt 0:01:40]} 30. Re1 {[%emt 0:01:49]} a5 {[%emt 0:00:18]} 31. Kf2 {[%emt 0:00:07]} a4 {[%emt 0:02:16]} 32. Ke3 {[%emt 0:00:10]} a3 {[%emt 0:00:59]} 33. Bd3 {[%emt 0:00:46]} Rf2 {[%emt 0:04:07]} 34. h6+ {[%emt 0:00:17]} Kxh6 {[%emt 0:01:05]} 35. Rh1+ {[%emt 0:00:08]} Kg7 {[%emt 0:02:58]} 36. Rxh7+ {[%emt 0:00:05]} Kf8 {[%emt 0:00:01]} 37. Rh3 {[%emt 0:00:09]} Ke7 {[%emt 0:00:07]} 38. Rc7+ {[%emt 0:05:17]} Kd6 {[%emt 0:00:02]} 39. Rc3 {[%emt 0:00:03]} Rfb2 {[%emt 0:03:16]} 40. Rh8 {[%emt 0:02:06]} Ra1 {[%emt 0:00:36]} 41. Bf5 {[%emt 0:04:41]} Re1+ {[%emt 0:02:41]} 42. Kd3 {[%emt 0:00:06]} a2 {[%emt 0:00:14]} 43. Rd8+ {[%emt 0:02:14]} Ke7 {[%emt 0:00:01]} 44. Rcc8 {[%emt 0:00:26]} Bc4+ {[%emt 0:00:56]} 45. Kxc4 {[%emt 0:02:15]} Rc1+ {[%emt 0:00:02]} 46. Kd3 {[%emt 0:00:14]} Rxc8 {[%emt 0:00:13]} 47. Rxc8 {[%emt 0:00:02]} a1=Q {[%emt 0:00:10]} 48. Rc7+ {[%emt 0:00:06]} Kd6 {[%emt 0:00:12]} 49. Rd7+ {[%emt 0:00:03]} Kc6 {[%emt 0:00:03]} 50. Be4+ {[%emt 0:00:18]} Kxd7 {[%emt 0:00:02]} 51. Bf5+ {[%emt 0:00:02]} Kd6 {[%emt 0:00:08]} 52. Ke3 {[%emt 0:00:13]} Qa7+ {[%emt 0:00:19]} 53. Kd3 {[%emt 0:00:11]} Qd4# {[%emt 0:00:31]} 0-1

[Event "Chinese Team-ch Men 2025"]
[Site "Zhang Jiakou Hebei"]
[Date "2025.04.28"]
[Round "4.20"]
[White "Gong, Bonuonuo"]
[Black "Pan, Xizhi"]
[Result "0-1"]
[Annotator "NA RC"]
[ECO "A17"]
[WhiteElo "1709"]
[BlackElo "1821"]
[PlyCount "107"]
[EventDate "2025.04.26"]
[EventType "team-tourn"]
[EventCountry "CHN"]
[SourceTitle "playchess.com"]
[Source "ChessBase"]
[SourceQuality "1"]
[TimeControl "5400+30"]

1. c4 {[%emt 0:00:03]} e6 {[%emt 0:00:05]} 2. Nc3 {[%emt 0:00:05]} Nf6 {[%emt 0:00:05]} 3. Nf3 {[%emt 0:00:21]} b6 {[%emt 0:00:41]} 4. e4 {[%emt 0:01:42]} Bb7 {[%emt 0:00:10]} 5. d3 {[%emt 0:01:16]} d6 {[%emt 0:05:56]} 6. Be2 {[%emt 0:01:00]} Be7 {[%emt 0:00:10]} 7. O-O {[%emt 0:01:40]} O-O {[%emt 0:04:49]} 8. h3 {[%emt 0:05:04]} c5 {[%emt 0:00:25]} 9. Nh2 {[%emt 0:02:54]} d5 {[%emt 0:06:22]} 10. cxd5 {[%emt 0:03:20]} exd5 {[%emt 0:00:13]} 11. e5 {[%emt 0:00:51]} Nfd7 {[%emt 0:00:08]} 12. f4 {[%emt 0:01:17]} d4 {[%emt 0:00:41]} 13. Bf3 {[%emt 0:00:40]} Qc8 {[%emt 0:02:07]} 14. Nd5 {[%emt 0:10:04]} Bh4 {[%emt 0:00:17]} 15. g3 {[%emt 0:05:55]} Bd8 {[%emt 0:00:09]} 16. Re1 {[%emt 0:12:10]} Nc6 {[%emt 0:01:50]} 17. Be4 {[%emt 0:02:57]} Ne7 {[%emt 0:03:00]} 18. Qh5 {[%emt 0:06:45]} g6 {[%emt 0:03:51]} 19. Qf3 {[%emt 0:00:12]} Nxd5 {[%emt 0:02:04]} 20. Bxd5 {[%emt 0:00:03]} Bxd5 {[%emt 0:00:02]} 21. Qxd5 {[%emt 0:00:02]} b5 {[%emt 0:00:32]} 22. Ng4 {[%emt 0:09:09]} Nb6 {[%emt 0:02:45]} 23. Qe4 {[%emt 0:04:00]} f5 {[%emt 0:00:13]} 24. exf6 {[%emt 0:00:53]} Bxf6 {[%emt 0:00:04]} 25. b3 {[%emt 0:02:02]} Bg7 {[%emt 0:01:14]} 26. Bd2 {[%emt 0:04:25]} Re8 {[%emt 0:00:11]} 27. Qf3 {[%emt 0:01:26]} Qf5 {[%emt 0:01:32]} 28. Rac1 {[%emt 0:05:39]} h5 {[%emt 0:03:11]} 29. Nf2 {[%emt 0:00:15]} Rxe1+ {[%emt 0:00:05]} 30. Rxe1 {[%emt 0:01:15]} Rc8 {[%emt 0:02:18]} 31. g4 {[%emt 0:04:44]} hxg4 {[%emt 0:00:12]} 32. hxg4 {[%emt 0:00:05]} Qd7 {[%emt 0:01:07]} 33. Qe4 {[%emt 0:04:30]} Qc6 {[%emt 0:00:33]} 34. f5 {[%emt 0:05:23]} c4 {[%emt 0:01:54]} 35. bxc4 {[%emt 0:00:30]} gxf5 {[%emt 0:01:36]} 36. Qxf5 {[%emt 0:01:52]} bxc4 {[%emt 0:00:26]} 37. Re6 {[%emt 0:00:57]} Qd7 {[%emt 0:00:49]} 38. dxc4 {[%emt 0:00:57]} Nxc4 {[%emt 0:00:48]} 39. Bh6 {[%emt 0:00:30]} Rf8 {[%emt 0:00:34]} 40. Qe4 {[%emt 0:01:41]} Qf7 {[%emt 0:00:25]} 41. Qe2 {[%emt 0:00:30]} Ne3 {[%emt 0:00:06]} 42. Ra6 {[%emt 0:00:49]} Bxh6 {[%emt 0:00:26]} 43. Rxh6 {[%emt 0:00:02]} Qxf2+ {[%emt 0:00:18]} 44. Qxf2 {[%emt 0:00:29]} Rxf2 {[%emt 0:00:06]} 45. Rg6+ {[%emt 0:01:11]} Kf7 {[%emt 0:00:00]} 46. Ra6 {[%emt 0:00:34]} Rf1+ {[%emt 0:00:04]} 47. Kh2 {[%emt 0:00:10]} d3 {[%emt 0:00:04]} 48. Rxa7+ {[%emt 0:01:04]} Ke6 {[%emt 0:00:03]} 49. Ra3 {[%emt 0:00:17]} d2 {[%emt 0:00:13]} 50. Rxe3+ {[%emt 0:00:10]} Kf6 {[%emt 0:00:01]} 51. Rd3 {[%emt 0:00:10]} d1=Q {[%emt 0:00:07]} 52. Rxd1 {[%emt 0:00:06]} Rxd1 {[%emt 0:00:01]} 53. a4 {[%emt 0:00:10]} Rd4 {[%emt 0:00:03]} 54. Kg3 {[%emt 0:00:06]} 0-1

[Event "Chinese Team-ch Men 2025"]
[Site "Zhang Jiakou Hebei"]
[Date "2025.04.28"]
[Round "4.21"]
[White "Xu, Yinglun"]
[Black "Chen, Qi b"]
[Result "1/2-1/2"]
[Annotator "RC"]
[ECO "D37"]
[WhiteElo "2522"]
[BlackElo "2482"]
[PlyCount "60"]
[EventDate "2025.04.26"]
[EventType "team-tourn"]
[EventCountry "CHN"]
[SourceTitle "playchess.com"]
[Source "ChessBase"]
[SourceQuality "1"]
[TimeControl "5400+30"]

1. d4 {[%emt 0:00:14]} Nf6 {[%emt 0:00:25]} 2. Nf3 {[%emt 0:00:30]} d5 {[%emt 0:01:57]} 3. c4 {[%emt 0:01:36]} e6 {[%emt 0:00:17]} 4. Nc3 {[%emt 0:00:14]} a6 {[%emt 0:02:22]} 5. c5 {[%emt 0:03:27]} b6 {[%emt 0:04:32]} 6. cxb6 {[%emt 0:00:14]} cxb6 {[%emt 0:00:06]} 7. Bf4 {[%emt 0:00:07]} Bd6 {[%emt 0:02:44]} 8. Bxd6 {[%emt 0:00:56]} Qxd6 {[%emt 0:00:04]} 9. e3 {[%emt 0:00:07]} O-O {[%emt 0:01:18]} 10. Bd3 {[%emt 0:02:12]} Bb7 {[%emt 0:02:26]} 11. O-O {[%emt 0:00:20]} Nbd7 {[%emt 0:00:27]} 12. Rc1 {[%emt 0:02:25]} Rfc8 {[%emt 0:02:52]} 13. Qb3 {[%emt 0:03:45]} b5 {[%emt 0:04:37]} 14. a4 {[%emt 0:03:29]} bxa4 {[%emt 0:01:35]} 15. Nxa4 {[%emt 0:00:46]} Bc6 {[%emt 0:00:22]} 16. Nc5 {[%emt 0:00:30]} a5 {[%emt 0:00:53]} 17. Qa3 {[%emt 0:00:40]} a4 {[%emt 0:02:54]} 18. Nxd7 {[%emt 0:00:26]} Qxd7 {[%emt 0:00:05]} 19. Ne5 {[%emt 0:00:27]} Qb7 {[%emt 0:00:10]} 20. Nxc6 {[%emt 0:00:18]} Rxc6 {[%emt 0:00:04]} 21. Rxc6 {[%emt 0:00:06]} Qxc6 {[%emt 0:00:04]} 22. Ra1 {[%emt 0:00:12]} Nd7 {[%emt 0:02:08]} 23. b3 {[%emt 0:00:18]} Nb6 {[%emt 0:00:17]} 24. bxa4 {[%emt 0:00:30]} Rxa4 {[%emt 0:00:13]} 25. Qb2 {[%emt 0:00:05]} Rxa1+ {[%emt 0:00:07]} 26. Qxa1 {[%emt 0:00:06]} Nc4 {[%emt 0:01:12]} 27. g3 {[%emt 0:00:36]} g6 {[%emt 0:00:21]} 28. Kg2 {[%emt 0:00:05]} Kg7 {[%emt 0:00:45]} 29. Bxc4 {[%emt 0:00:10]} Qxc4 {[%emt 0:00:04]} 30. h4 {[%emt 0:00:05]} h6 {[%emt 0:00:58]} 1/2-1/2

[Event "Chinese Team-ch Men 2025"]
[Site "Zhang Jiakou Hebei"]
[Date "2025.04.28"]
[Round "4.22"]
[White "Chen, Hongsen"]
[Black "Zhao, Chenxi"]
[Result "0-1"]
[Annotator "RC"]
[ECO "A46"]
[WhiteElo "2402"]
[BlackElo "2453"]
[PlyCount "74"]
[EventDate "2025.04.26"]
[EventType "team-tourn"]
[EventCountry "CHN"]
[SourceTitle "playchess.com"]
[Source "ChessBase"]
[SourceQuality "1"]
[TimeControl "5400+30"]

1. d4 {[%emt 0:00:04]} d5 {[%emt 0:00:03]} 2. Nf3 {[%emt 0:00:24]} e6 {[%emt 0:00:13]} 3. g3 {[%emt 0:02:20]} Nf6 {[%emt 0:00:24]} 4. Bg2 {[%emt 0:00:30]} b5 {[%emt 0:00:23]} 5. O-O {[%emt 0:00:55]} Be7 {[%emt 0:00:07]} 6. a4 {[%emt 0:02:33]} b4 {[%emt 0:00:56]} 7. c4 {[%emt 0:00:08]} bxc3 {[%emt 0:00:05]} 8. Nxc3 {[%emt 0:02:20]} O-O {[%emt 0:00:08]} 9. Ne5 {[%emt 0:00:38]} Ba6 {[%emt 0:01:02]} 10. Re1 {[%emt 0:01:07]} Nfd7 {[%emt 0:01:39]} 11. Nd3 {[%emt 0:11:35]} c5 {[%emt 0:13:14]} 12. e4 {[%emt 0:08:10]} cxd4 {[%emt 0:08:01]} 13. exd5 {[%emt 0:11:34]} dxc3 {[%emt 0:00:29]} 14. d6 {[%emt 0:04:56]} Bf6 {[%emt 0:01:16]} 15. Bxa8 {[%emt 0:14:55]} Bxd3 {[%emt 0:00:13]} 16. Qxd3 {[%emt 0:00:06]} cxb2 {[%emt 0:00:19]} 17. Bxb2 {[%emt 0:00:05]} Bxb2 {[%emt 0:00:09]} 18. Rab1 {[%emt 0:00:16]} Qa5 {[%emt 0:01:58]} 19. Red1 {[%emt 0:07:31]} Bf6 {[%emt 0:02:14]} 20. Qb5 {[%emt 0:02:03]} Qxb5 {[%emt 0:02:31]} 21. axb5 {[%emt 0:01:42]} Bd8 {[%emt 0:00:42]} 22. f4 {[%emt 0:01:26]} Bb6+ {[%emt 0:01:09]} 23. Kg2 {[%emt 0:00:05]} Rd8 {[%emt 0:00:47]} 24. Kf3 {[%emt 0:00:39]} g6 {[%emt 0:00:40]} 25. g4 {[%emt 0:01:07]} Kg7 {[%emt 0:00:34]} 26. Bc6 {[%emt 0:01:29]} e5 {[%emt 0:00:34]} 27. g5 {[%emt 0:02:51]} exf4 {[%emt 0:03:20]} 28. Kxf4 {[%emt 0:01:24]} Nc5 {[%emt 0:00:07]} 29. h4 {[%emt 0:02:17]} Ne6+ {[%emt 0:00:06]} 30. Ke4 {[%emt 0:01:08]} Bf2 {[%emt 0:01:14]} 31. Ra1 {[%emt 0:09:45]} a6 {[%emt 0:03:21]} 32. Bd5 {[%emt 0:03:39]} Rxd6 {[%emt 0:01:47]} 33. Kf3 {[%emt 0:00:17]} Bxh4 {[%emt 0:01:35]} 34. Kg4 {[%emt 0:03:54]} Bxg5 {[%emt 0:00:18]} 35. Bxe6 {[%emt 0:00:27]} Rxe6 {[%emt 0:00:04]} 36. bxa6 {[%emt 0:00:26]} h5+ {[%emt 0:00:18]} 37. Kxg5 {[%emt 0:01:17]} Re4 {[%emt 0:00:07]} 0-1

[Event "Chinese Team-ch Men 2025"]
[Site "Zhang Jiakou Hebei"]
[Date "2025.04.28"]
[Round "4.23"]
[White "Wu, Yixing"]
[Black "Jin, Hongtao"]
[Result "1/2-1/2"]
[Annotator "RC"]
[ECO "A13"]
[WhiteElo "2406"]
[BlackElo "2343"]
[PlyCount "59"]
[EventDate "2025.04.26"]
[EventType "team-tourn"]
[EventCountry "CHN"]
[SourceTitle "playchess.com"]
[Source "ChessBase"]
[SourceQuality "1"]
[TimeControl "5400+30"]

1. Nf3 {[%emt 0:00:05]} Nf6 {[%emt 0:00:09]} 2. c4 {[%emt 0:00:07]} e6 {[%emt 0:00:19]} 3. g3 {[%emt 0:00:09]} d5 {[%emt 0:00:23]} 4. Bg2 {[%emt 0:00:29]} d4 {[%emt 0:00:41]} 5. d3 {[%emt 0:00:12]} Bb4+ {[%emt 0:00:36]} 6. Bd2 {[%emt 0:01:58]} a5 {[%emt 0:00:41]} 7. Na3 {[%emt 0:00:55]} Nc6 {[%emt 0:03:24]} 8. Nc2 {[%emt 0:00:41]} Be7 {[%emt 0:09:47]} 9. O-O {[%emt 0:02:32]} e5 {[%emt 0:01:54]} 10. e3 {[%emt 0:02:56]} O-O {[%emt 0:05:02]} 11. exd4 {[%emt 0:02:07]} exd4 {[%emt 0:00:10]} 12. b3 {[%emt 0:00:10]} Bf5 {[%emt 0:04:55]} 13. Bf4 {[%emt 0:00:54]} Qd7 {[%emt 0:07:35]} 14. Ne5 {[%emt 0:07:12]} Nxe5 {[%emt 0:00:18]} 15. Bxe5 {[%emt 0:00:01]} c5 {[%emt 0:01:39]} 16. Na3 {[%emt 0:00:08]} Ng4 {[%emt 0:04:02]} 17. Bf4 {[%emt 0:06:34]} g5 {[%emt 0:04:43]} 18. Bc1 {[%emt 0:00:12]} Ne5 {[%emt 0:00:45]} 19. f4 {[%emt 0:00:27]} gxf4 {[%emt 0:17:39]} 20. Bxf4 {[%emt 0:00:17]} Nxd3 {[%emt 0:00:44]} 21. Bh6 {[%emt 0:00:41]} Rfe8 {[%emt 0:06:51]} 22. Bxb7 {[%emt 0:22:19]} Rab8 {[%emt 0:05:21]} 23. Bd5 {[%emt 0:07:48]} Bf8 {[%emt 0:04:28]} 24. Qd2 {[%emt 0:08:38]} Bg6 {[%emt 0:02:49]} 25. Rxf7 {[%emt 0:10:58]} Bxf7 {[%emt 0:00:06]} 26. Qg5+ {[%emt 0:00:03]} Kh8 {[%emt 0:00:05]} 27. Qf6+ {[%emt 0:00:04]} Kg8 {[%emt 0:00:02]} 28. Qg5+ {[%emt 0:00:25]} Kh8 {[%emt 0:00:03]} 29. Qf6+ {[%emt 0:00:26]} Kg8 {[%emt 0:00:02]} 30. Qg5+ {[%emt 0:00:34]} 1/2-1/2